Cogmind - Beta 13 @@@ ROGUE MODE // 2024.05.01 @ 15:07:48 Player: void Result: Self-destructed Performance ------------- Evolutions (1) 500 Regions Visited (3) 600 Robots Destroyed (11) 55 Value Destroyed (302) 302 Prototype IDs (1) 20 Alien Tech Used (0) 0 Bonus (0) 0 TOTAL SCORE: 1477 Bonus ------- None Cogmind --------- Core Integrity 184/400 Matter 272/300 Energy 100/100 System Corruption 0% Temperature Cool (0) Movement Core (350) Ox6 Location -9/Materials Parts ------- > --- POWER (1) -------- (None) > --- PROPULSION (2) --- (None) > --- UTILITY (4) ------ Small Storage Unit Sensor Drone Bay (19/20) > --- WEAPON (2) ------- Assault Rifle > --- INVENTORY (8) ---- Ion Engine Advanced Weight Redist. System Mining Laser Peak State ------------ > --- POWER ------------ Improved Ion Engine > --- PROPULSION ------- Wheel > --- UTILITY ---------- Small Storage Unit Improved Terrain Scanner Seismic Detector Sensor Drone Bay > --- WEAPON ----------- Small Laser Beam Rifle > --- INVENTORY -------- Ion Engine Advanced Weight Redist. System Assault Rifle Light Assault Rifle Mining Laser [Rating: 19] Favorites ----------- Power Ion Engine Engine Ion Engine Propulsion Wheel Wheel Wheel Utility Small Storage Unit Device Sensor Drone Bay Storage Small Storage Unit Weapon Light Assault Rifle Energy Gun Small Laser Ballistic Gun Light Assault Rifle Build | -11 -10 -10 -9 ------- Run | Yrd Mat Min Mat Slots Evolved 2 | . . . 2 Power . | . . . . Propulsion . | . . . . Utility 2 | . . . 2 Weapon . | . . . . Parts Attached 14 | 7 . 1 6 Power 2 | 1 . . 1 Engine 2 | 1 . . 1 Core . | . . . . Reactor . | . . . . Propulsion 2 | 2 . . . Treads . | . . . . Leg . | . . . . Wheel 2 | 2 . . . Hover . | . . . . Flight . | . . . . Utility 5 | 2 . 1 2 Device 4 | 1 . 1 2 Storage 1 | 1 . . . Processor . | . . . . Hackware . | . . . . Protection . | . . . . Artifact . | . . . . Weapon 5 | 2 . . 3 Energy Gun 2 | 1 . . 1 Energy Cannon . | . . . . Ballistic Gun 3 | 1 . . 2 Ballistic Cannon . | . . . . Launcher . | . . . . Special Weapon . | . . . . Impact Weapon . | . . . . Slashing Weapon . | . . . . Piercing Weapon . | . . . . Special Melee Weapon . | . . . . Unidentified Prototypes 1 | . . 1 . Parts Lost 8 | . . . 8 Power 1 | . . . 1 Propulsion 2 | . . . 2 Utility 2 | . . . 2 Weapon 3 | . . . 3 Highest Loss Streak 7 | . . . 7 To Critical Strikes . | . . . . Average Slot Usage (%) 94 | . 100 100 86 Engine 12 | . 14 14 9 Wheel 22 | . 28 28 15 Device 20 | . 14 14 29 Storage 12 | . 14 14 11 Energy Gun 12 | . 14 14 10 Ballistic Gun 12 | . 14 14 10 Naked Turns . | . . . . Heaviest Build 30 | 13 13 26 30 Greatest Support 26 | 26 26 26 26 Greatest Overweight (x) 9 | 3 . . 9 Average Overweight (x) . | . . . 1 Largest Inventory Capacity 8 | 8 8 8 8 Average Capacity 7 | 7 8 8 8 Most Carried 5 | 3 3 4 5 Average Carried 2 | 1 3 3 3 Final Capacity 8 | 8 8 8 8 Final Carried 4 | 3 3 4 3 Class Distribution -------------------- 100% | Mutant Dominant Class ---------------- Mutant | -10/Materials Mutant | -10/Mines Mutant | -9/Materials Resources | -11 -10 -10 -9 ----------- Run | Yrd Mat Min Mat Matter Collected 335 | 287 . 19 29 Remotely . | . . . . Salvage Created 470 | 127 . 90 253 Parts 31 | 11 . 2 18 Haulers Intercepted . | . . . . Recyclers Shooed 1 | . . 1 . Parts Field Recycled . | . . . . Retrieved Matter . | . . . . Parts Self-Destructed . | . . . . Prevented . | . . . . Kills | -11 -10 -10 -9 ------- Run | Yrd Mat Min Mat Combat Hostiles Destroyed 7 | . . 2 5 Guns 7 | . . 2 5 Classes Destroyed 5 | 2 . 1 2 Tunneler 3 | 3 . . . Recycler 1 | 1 . . . Grunt 4 | . . 2 2 Brawler 1 | . . . 1 Sentry 2 | . . . 2 Best Kill Streak 3 | 3 . 2 3 Combat Bots Only 3 | . . 2 3 Max Kills in Single Turn 1 | 1 . 1 1 Gunslinging . | . . . . Exploded . | . . . . Melee . | . . . . Uniques/NPCs Destroyed . | . . . . Combat | -11 -10 -10 -9 -------- Run | Yrd Mat Min Mat Hostile Shots Fired 111 | . . 11 100 Missed 30 | . . 2 28 Damage Taken 1057 | . . 123 934 Core 216 | . . . 216 Absorbed by Shields . | . . . . Core Remaining (%) 100 | 100 . 100 . Volleys Fired 54 | 17 . 9 28 Largest 2 | 2 . 2 2 Hottest 96 | 60 . 60 96 Shots Fired 98 | 34 . 18 46 Gun 98 | 34 . 18 46 Cannon . | . . . . Launcher . | . . . . Special . | . . . . Kinetic 51 | 17 . 9 25 Thermal 47 | 17 . 9 21 Explosive . | . . . . Electromagnetic . | . . . . Robot Hit Streak 13 | 9 . 9 13 Robot Miss Streak 3 | 3 . 1 2 Penetration Max . | . . . . Secondary Targets 1 | . . . 1 Max Gunslinging Chain 1 | . . . 1 Shots Hit Robots 76 | 22 . 16 38 Core Hits 26 | 7 . 6 13 Critical Kills . | . . . . Critical Parts Destroyed . | . . . . Critical Strikes 1 | . . . 1 Burn 1 | . . . 1 Melee Attacks . | . . . . Impact . | . . . . Slashing . | . . . . Piercing . | . . . . Sneak Attacks . | . . . . Combat Hostiles . | . . . . Follow-up Attacks . | . . . . Damage Inflicted 774 | 211 . 142 421 Guns 774 | 211 . 142 421 Cannons . | . . . . Explosions . | . . . . Melee . | . . . . Ramming . | . . . . Kinetic 349 | 90 . 53 206 Thermal 425 | 121 . 89 215 Explosive . | . . . . Electromagnetic . | . . . . Impact . | . . . . Slashing . | . . . . Piercing . | . . . . Highest Corruption . | . . . . Average Corruption . | . . . . Corruption Purged . | . . . . Corruption Blocked . | . . . . Overload Shots . | . . . . Overflow Damage . | . . . . Projectiles . | . . . . Explosions . | . . . . Melee . | . . . . Knockbacks . | . . . . Impact . | . . . . Kinetic . | . . . . Secondary . | . . . . Self-Inflicted Damage . | . . . . Shots . | . . . . Rammed . | . . . . Targets Rammed . | . . . . Kicked . | . . . . Crushed . | . . . . Highest Temperature 270 | 60 . 126 270 Average Temperature 61 | 23 . 60 86 Received Heat Transfer 474 | . . 72 402 Siege Activations . | . . . . Robots Corrupted . | . . . . Combat Hostiles . | . . . . Parts Fried . | . . . . Impact Corruptions . | . . . . Robots Melted . | . . . . Combat Hostiles . | . . . . Parts Melted 1 | 1 . . . Heat Transferred 1059 | 275 . 200 584 Parts Sabotaged . | . . . . Parts Stolen . | . . . . Parts Stripped . | . . . . Power Chain Reactions . | . . . . Alert | -11 -10 -10 -9 ------- Run | Yrd Mat Min Mat Peak Influence 130 | 20 13 54 130 Initial 20 | . 13 4 20 Average 38 | 8 13 26 77 Maximum Alert Level . | . . . . Low Security (%) 100 | 100 100 100 100 Level 1 . | . . . . Level 2 . | . . . . Level 3 . | . . . . Level 4 . | . . . . Level 5 . | . . . . High Security . | . . . . Max Security . | . . . . Squads Dispatched 4 | . 2 . 2 Investigation 1 | . 1 . . Extermination . | . . . . Reinforcement 3 | . 1 . 2 Assault . | . . . . Garrison . | . . . . Intercept . | . . . . Searches Triggered . | . . . . Construction Impeded . | . . . . Haulers Reinforced . | . . . . Active Scanning Responses . | . . . . Cargo Convoy Interrupts . | . . . . Stealth | -11 -10 -10 -9 --------- Run | Yrd Mat Min Mat Distress Signals 4 | . . . 4 Communications Jammed . | . . . . Distress Signals . | . . . . Times Spotted 14 | . . 2 12 Peak Tracking Total 7 | . . 2 7 Tactical Retreats . | . . . . Traps | -11 -10 -10 -9 ------- Run | Yrd Mat Min Mat Traps Triggered . | . . . . Indirectly . | . . . . Trap Hack Attempts . | . . . . Triggered . | . . . . Disarmed . | . . . . Reprogrammed . | . . . . Reused . | . . . . Traps Extracted . | . . . . Installed . | . . . . Triggered . | . . . . Machines | -11 -10 -10 -9 ---------- Run | Yrd Mat Min Mat Machines Disabled . | . . . . Max in Single Turn . | . . . . Machines Repaired . | . . . . Machines Dismantled . | . . . . Machines Sabotaged . | . . . . Overloaded Fab Kills . | . . . . Hacking | -11 -10 -10 -9 --------- Run | Yrd Mat Min Mat Machines Accessed 2 | . 1 1 . Terminals 1 | . 1 . . Fabricators . | . . . . Repair Stations . | . . . . Recycling Units . | . . . . Scanalyzers . | . . . . Garrison Access . | . . . . Total Hacks 2 | . 1 1 . Successful 2 | . 1 1 . Failed . | . . . . Catastrophic . | . . . . Database Lockouts . | . . . . Manual . | . . . . Terminals 1 | . 1 . . Fabricators . | . . . . Repair Stations . | . . . . Recycling Units . | . . . . Scanalyzers . | . . . . Garrison Access . | . . . . Terminal Hacks 2 | . 1 1 . Open Door 1 | . . 1 . Investigation Status 1 | . 1 . . Fabricator Hacks . | . . . . Repair Station Hacks . | . . . . Recycling Unit Hacks . | . . . . Scanalyzer . | . . . . Garrison Access Hacks . | . . . . Unauthorized Hacks . | . . . . Terminals . | . . . . Fabricators . | . . . . Repair Stations . | . . . . Recycling Units . | . . . . Scanalyzers . | . . . . Garrison Access . | . . . . Data Cores Recovered . | . . . . Used . | . . . . Hacking Detections . | . . . . Full Trace Events . | . . . . Feedback Events . | . . . . Feedback Blocked . | . . . . Robot Schematics Acquired . | . . . . Robots Built . | . . . . Authchips . | . . . . Time . | . . . . Total Robot Build Rating . | . . . . Part Schematics Acquired . | . . . . Parts Built . | . . . . Authchips . | . . . . Time . | . . . . Total Part Build Rating . | . . . . Parts Repaired . | . . . . Time . | . . . . Parts Recycled . | . . . . Recycled Matter . | . . . . Retrieved Matter . | . . . . Retrieved Components . | . . . . Parts Scanalyzed . | . . . . Part Schematics Acquired . | . . . . Parts Damaged . | . . . . Bothacking | -11 -10 -10 -9 ------------ Run | Yrd Mat Min Mat Used RIF Installer . | . . . . Robots Hacked . | . . . . Non-combat . | . . . . Combat . | . . . . Robot Hacks Applied . | . . . . Relay Couplers Released . | . . . . Fabnet Peak Effective % . | . . . . Robots Rewired . | . . . . Allies Hacked . | . . . . Hacks Repelled . | . . . . Allies | -11 -10 -10 -9 -------- Run | Yrd Mat Min Mat Total Allies . | . . . . Largest Group . | . . . . Highest-Rated Group . | . . . . Highest-Rated Ally . | . . . . Total Orders . | . . . . Ally Attacks . | . . . . Total Damage . | . . . . Kills . | . . . . Allies Corrupted . | . . . . Allies Melted . | . . . . Intel | -11 -10 -10 -9 ------- Run | Yrd Mat Min Mat Robot Analysis Total . | . . . . Derelict Logs Recovered 1 | . . 1 . Drone Launches 13 | . . 6 7 Drone Recoveries 12 | . . 2 10 Exploration | -11 -10 -10 -9 ------------- Run | Yrd Mat Min Mat Turns Passed 635 | 138 113 162 222 Spaces Moved 428 | 78 126 137 87 Core 16 | 11 . . 5 Treads . | . . . . Legs . | . . . . Wheels 412 | 67 126 137 82 Hover . | . . . . Flight . | . . . . Fastest Speed 50 | 50 90 90 105 Average Speed 98 | 98 90 90 121 Slowest Speed 500 | 200 90 90 500 Overloaded Moves . | . . . . Propulsion Burnouts . | . . . . Robots Hopped . | . . . . Cave-ins Triggered . | . . . . Exploration Rate (%) 23 | 7 29 39 19 Regions Visited 3 Branch Regions 1 Pre-discovered Areas . | . . . . Known Exits Taken . | . . . . Unknown Exits Taken 3 | 1 1 1 . Scrap Searched 1 | . . 1 . Spaces Dug . | . . . . Terrain Destroyed . | . . . . Melee . | . . . . Projectile . | . . . . AOE . | . . . . Terrain Rammed . | . . . . Walls Destroyed . | . . . . Machines Disabled . | . . . . Actions | -11 -10 -10 -9 --------- Run | Yrd Mat Min Mat Total 547 | 105 125 158 159 Wait 47 | . . 11 36 Move 425 | 77 125 136 87 Hop . | . . . . Pick Up 7 | 4 . 1 2 Fast Attach 6 | 6 . . . Attach 5 | 1 . . 4 Detach . | . . . . Swap 3 | . . 1 2 Drop . | . . . . Fire 54 | 17 . 9 28 Melee . | . . . . Ram . | . . . . Kick . | . . . . Crush . | . . . . Escape Stasis . | . . . . Rewire . | . . . . Trap . | . . . . Miscellaneous . | . . . . Route ------- -11/Scrapyard -10/Materials -10/Mines -9/Materials History --------- Turn | Location | Event 34 | -11/Scrapyard | Discovered new exit (range 14) 139 | -11/Scrapyard | Entered Materials 231 | -10/Materials | Discovered new exit (range 16) 252 | -10/Materials | Entered Mines 260 | -10/Mines | Found the Drone Emporium 263 | -10/Mines | Found Prototype Device 264 | -10/Mines | Identified Sensor Drone Bay 287 | -10/Mines | Met a Derelict bent on vengeance 304 | -10/Mines | Build established: Mutant 306 | -10/Mines | Learned Materials emergency access door positions 411 | -10/Mines | Discovered new exit (range 3) 414 | -10/Mines | Entered Materials 414 | -9/Materials | Accompanied by 4 allies 414 | -9/Materials | Evolved 2 slots: Utility x2 625 | -9/Materials | Core integrity fell below 50% 636 | -9/Materials | Self-destructed Last Messages --------------- Sensor Drone released from Sensor Drone Bay. Sensor Drone retrieved by Sensor Drone Bay. K-01 Serf collects debris. Sensor Drone retrieved by Sensor Drone Bay. Y-45 Defender suffers critical hit (Burn). Critical hit (Burn: +37). Sml. Laser destroyed. Sensor Drone retrieved by Sensor Drone Bay. K-01 Serf collects debris. Beam Rifle destroyed. K-01 Serf collects debris. Y-45 Defender destroyed. Switching to secondary target: Y-45 Defender. Imp. Ion Engine destroyed. K-01 Serf collects debris. Lgt. Assault Rifle destroyed. K-01 Serf collects debris. Critical hit (Burn: +37). Seismic Detector destroyed. K-01 Serf collects debris. Map ----- +----------------------------------------------------+ | ????# """ """ #????????? | | ????# """ """ "" #????????? | | ????# T" #????????? | | ??#?# ""???????????? | | ##### ?????????? | | ?????????? | | ##############+####+##?????????? | | ##??????#??? ???? ? ?????????? | | #????????"?? ?????? ?????????? | | #???????????????? ? ??????#### | | #########????"?????? ????? # | | # #??????????? ##??? # | | # # ?????????? #??? # | | + #??????????? #??? # | | # #???????????#+#?? # | | # #########???# #?? ! # | | # ## ##### ## # | | # ## + # # | | # ## ##### + # | | # ## #???#[!# # | | # ## #???#% # # | | # ##% #??##= ######### | | ####+#####/######### # ! T # | | !%* g# # | | = Y # | | ##########+## ##### #@ # | | ??? ???? # #???###### # | | ?????? # #????????# !!# | | ?????# "" #?? ????????# ! # | | ????# S"" #??? ??????#### #### | | ????## "" #??? T?????????##??? | | ?????# #??? ????????????? | | ?????########????? ????? ?????? | | ??????????????????? ? ?????????? | | ??????????????????? ???????????? | | ????#???????????????#??????????? | | ????????#??????????????????????? | | ???????????????????????????????? | | ??????????##???????????????????? | | ???????????????????????????????? | | ???????????????????????????????? | | | | | | | | | | | | | | | | | | | +----------------------------------------------------+ Best States ------------- Heat Dissipation 28 Energy Generation 12 Energy Capacity 265 Matter Stores 300 Matter Capacity 300 Sight Range 16 Terrain Scan Range 16 Terrain Scan Density 10 Evasion (%) 42 Item Schematics ----------------- None Robot Schematics ------------------ None Fabricated ------------ Nothing Alien Tech Used ----------------- None Achievements -------------- Release The Drones! Challenges ------------ None Game ------ Seed DirtyVariableMace Manual? 0 Play Time 00:09:14 Cumulative 14.3 hours Start 2024.05.01 @ 00:46:08 End 2024.05.01 @ 15:07:48 Sessions 2 Manual Loads 0 Difficulty Rogue Special Mode None Game No. 29 Rogue 21 Adventurer 8 Explorer 0 Win Type - Total 0 Types 0/0/0/0/0/0/0/0/0 Lore% 4 Gallery% 20 Achievement% 16 Wizard Run 0 Options --------- Layout 0 ASCII 0 Keyboard 0 Movement Mouse Keybinds 0 Fullscreen 2 Font 18/SmallcapsGlow Map View 76x50 Zoom Use 97% Tactical HUD 0 Map Filters NONE Filters NONE Steam 1 RUN: e9c6590c-a433-496b-af53-121c270a39a7